bitfinex-derivatives/quotes_BTCF0:USTF0_20250416
["timestamp","ask_amount","ask_price","bid_price","bid_amount"]
[1744828771138,0.1190565,83992.0,83991.0,0.00519957]
[1744828771331,0.1190565,83992.0,83991.0,0.00511957]
[1744828771534,0.1279868,83992.0,83991.0,0.00519957]
[1744828771934,0.1279868,83992.0,83991.0,0.00819957]
[1744828772130,0.1279868,83992.0,83991.0,0.00811957]
[1744828772444,0.1279868,83992.0,83991.0,0.00819957]
[1744828772646,0.1279868,83992.0,83991.0,0.00811957]
[1744828772847,0.0089303,83992.0,83991.0,0.48805747]
[1744828773143,0.1190565,83992.0,83991.0,0.55758507]
[1744828773334,0.1190565,83992.0,83991.0,0.43852717]
[1744828773739,0.12814311,83992.0,83991.0,0.44052717]
[1744828773934,0.00908661,83992.0,83991.0,0.44052717]
[1744828774146,0.1190565,83992.0,83991.0,0.55958227]
[1744828774548,0.01380895,84003.0,84002.0,0.1190424]
[1744828774849,0.13284985,84003.0,84002.0,0.3708]
[1744828775246,0.13284985,84003.0,84002.0,0.4898424]
[1744828776156,0.0595151,84011.0,84008.0,0.119031]
[1744828776349,0.0595124,84015.0,84012.0,0.0595134]
[1744828776543,0.1785392,84015.0,84014.0,0.1190253]
[1744828776749,0.1785392,84015.0,84014.0,0.1290253]
[1744828777650,0.01388533,84015.0,84014.0,0.1290253]
[1744828778150,0.01088533,84015.0,84014.0,0.1290253]
[1744828778338,0.12990923,84015.0,84014.0,0.1300253]
[1744828779055,0.12790923,84015.0,84014.0,0.012]
[1744828779254,0.1190353,84007.0,84006.0,0.00017853]
[1744828779447,0.1190409,84003.0,84002.0,0.3608]
[1744828780145,0.1190409,84003.0,84002.0,0.36088]
[1744828782757,0.12791909,84003.0,84002.0,0.36088]
[1744828784160,0.1190523,83995.0,83994.0,0.00017853]
[1744828784651,0.1190523,83995.0,83994.0,0.00025853]
[1744828785057,0.3858523,83995.0,83994.0,0.00025853]
[1744828785354,0.3858523,83995.0,83994.0,0.00125853]
[1744828785957,0.3858523,83995.0,83994.0,0.00325853]
[1744828786556,0.3858523,83995.0,83985.0,0.3608]
[1744828786557,0.1190792,83976.0,83975.0,0.30208777]
[1744828786858,0.1290792,83976.0,83975.0,0.30208777]
[1744828787262,0.1290792,83976.0,83975.0,0.42838777]
[1744828787664,0.40805844,83976.0,83975.0,0.43138777]
[1744828788053,0.40805844,83976.0,83975.0,0.003]
[1744828788761,0.1190863,83971.0,83970.0,0.1263]
[1744828788964,0.1290863,83971.0,83970.0,0.1863]
[1744828789163,0.1290863,83971.0,83970.0,0.3053877]
[1744828789655,0.1290863,83971.0,83970.0,0.1863]
[1744828789853,0.1290863,83971.0,83970.0,0.3053877]
[1744828790062,0.1290863,83971.0,83970.0,0.3093877]
[1744828790256,0.1300863,83971.0,83970.0,0.3113877]
[1744828790459,0.1300863,83971.0,83970.0,0.066]
[1744828790658,0.1300863,83971.0,83970.0,0.006]
[1744828791065,0.3981863,83971.0,83970.0,0.006]
[1744828791759,0.3981863,83971.0,83970.0,0.00608]
[1744828791959,0.3981863,83971.0,83970.0,0.006]
[1744828792163,0.3981863,83971.0,83970.0,0.00608]
[1744828792365,0.3981863,83971.0,83970.0,0.006]
[1744828792559,0.3981863,83971.0,83970.0,0.00608]
[1744828792959,0.3981863,83971.0,83970.0,0.13378]
[1744828793156,0.3981863,83971.0,83970.0,8e-05]
[1744828793359,0.3981863,83971.0,83950.0,0.2596]
[1744828793360,0.1191104,83954.0,83950.0,0.2596]
[1744828793558,0.6399,83971.0,83952.0,0.3608]
[1744828793559,0.0595566,83953.0,83952.0,0.3608]
[1744828793866,0.1191118,83953.0,83952.0,0.3708]
[1744828795963,0.12801704,83953.0,83952.0,0.3728]
[1744828796163,0.12801704,83953.0,83952.0,0.3738]
[1744828797069,0.00017863,83962.0,83952.0,0.6238]
[1744828797368,0.11927773,83962.0,83961.0,0.3608]
[1744828797572,0.11927773,83962.0,83961.0,0.3808]
[1744828797868,0.11927773,83962.0,83961.0,0.4999005]
[1744828798374,0.11927773,83962.0,83961.0,0.02]
[1744828798561,0.12027773,83962.0,83961.0,0.2754]
[1744828798770,0.12027773,83962.0,83961.0,0.3945805]
[1744828798963,0.12027773,83962.0,83961.0,0.2754]
[1744828799164,0.12027773,83962.0,83961.0,0.3945805]
[1744828799358,0.12907215,83962.0,83961.0,0.3945805]
[1744828800165,0.12907215,83962.0,83961.0,0.27548]
[1744828800371,0.12907215,83962.0,83961.0,0.6162]
[1744828800667,0.1786204,83977.0,83976.0,0.0595384]
[1744828800875,0.2381602,83977.0,83976.0,0.07]
[1744828801075,0.61270782,83977.0,83976.0,0.07]
[1744828801261,0.62161709,83977.0,83976.0,0.07]
[1744828801467,0.1190962,83964.0,83963.0,0.3608]
[1744828801672,0.1190962,83964.0,83963.0,0.4998976]
[1744828802066,0.1190962,83964.0,83963.0,0.6504]
[1744828802281,0.1190962,83964.0,83963.0,0.7694976]
[1744828802478,0.2574962,83964.0,83963.0,0.7694976]
[1744828802667,0.2574962,83964.0,83963.0,0.7695776]
[1744828802975,0.003,83964.0,83963.0,0.7705776]
[1744828803370,0.1190818,83975.0,83974.0,0.1786195]
[1744828803571,0.003,83977.0,83976.0,0.1190792]
[1744828803774,0.13083067,83977.0,83976.0,0.1590792]
[1744828803974,0.13083067,83977.0,83976.0,0.4232792]
[1744828803975,0.003,83977.0,83976.0,0.4232792]
[1744828804278,0.01345497,83982.0,83981.0,0.1190721]
[1744828804466,0.2648,83992.0,83981.0,0.02]
[1744828804666,0.2648,83992.0,83991.0,0.1190579]
[1744828804667,0.3765168,83992.0,83991.0,0.1190579]
[1744828804873,0.12782278,83992.0,83991.0,0.1290579]
[1744828805375,0.12782278,83992.0,83991.0,0.01008]
[1744828805376,0.14112872,83992.0,83991.0,0.01008]
[1744828805774,0.15112872,83992.0,83991.0,0.1301379]
[1744828805977,0.40992872,83992.0,83991.0,0.01108]
[1744828806276,0.40992872,83992.0,83991.0,0.01008]
[1744828806472,0.39992872,83992.0,83991.0,0.1291379]
[1744828806671,0.40092872,83992.0,83991.0,0.01008]
[1744828806971,0.02307222,83992.0,83991.0,0.1291379]
[1744828807278,0.003,83992.0,83991.0,0.1291379]
[1744828808073,0.005,83994.0,83993.0,0.1190551]
[1744828808275,0.005,83994.0,83993.0,0.1390551]
[1744828809780,0.005,83994.0,83993.0,0.1391351]
[1744828810174,0.00017863,84000.0,83999.0,0.1190466]
[1744828810379,0.00017863,84000.0,83999.0,0.5198466]
[1744828811373,0.11922383,84000.0,83999.0,0.5198466]
[1744828811579,0.00017863,84000.0,83999.0,0.5198466]
[1744828811971,0.11922383,84000.0,83999.0,0.5218466]
[1744828812173,0.00017863,84000.0,83999.0,0.5218466]
[1744828812477,0.00017863,84000.0,83999.0,0.5208466]
[1744828812774,0.00017863,84000.0,83999.0,0.5218466]
[1744828813176,0.12086227,84004.0,83999.0,0.4028]
[1744828813374,0.1809294,84019.0,84010.0,0.119031]
[1744828813574,0.01377899,84017.0,84010.0,0.529831]
[1744828813771,0.1809294,84019.0,84010.0,0.529831]
[1744828814073,0.1809294,84019.0,84018.0,0.1190197]
[1744828814274,0.1189889,84040.0,84034.0,0.118997]
[1744828814577,0.29930262,84042.0,84034.0,0.870597]
[1744828814578,0.21878381,84035.0,84034.0,0.870597]
[1744828814973,0.20970906,84035.0,84034.0,0.870597]
[1744828815675,0.23980972,84042.0,84038.0,0.0594954]
[1744828815875,0.23980972,84042.0,84041.0,0.4797871]
[1744828816076,0.23980972,84042.0,84041.0,0.5097871]
[1744828816877,0.36279542,84042.0,84041.0,0.5097871]
[1744828817191,0.1229857,84042.0,84041.0,0.5097871]
[1744828817488,0.39358457,84042.0,84041.0,0.5097871]
[1744828817778,0.01309887,84042.0,84041.0,0.5097871]
[1744828817996,0.01909887,84042.0,84041.0,0.5098671]
[1744828818377,0.13208457,84042.0,84041.0,0.5098671]
[1744828818679,0.40358457,84042.0,84041.0,0.00108]
[1744828818882,0.1189984,84033.0,84025.0,0.4798091]
[1744828819076,0.1189984,84033.0,84018.0,0.1315]
[1744828819279,0.1190211,84017.0,84016.0,0.0001458]
[1744828819573,0.1190296,84011.0,84010.0,0.1785451]
[1744828819771,0.1190296,84011.0,84007.0,0.0595175]
[1744828819772,0.1190251,84015.0,84014.0,0.1190239]
[1744828819972,0.0594995,84033.0,84014.0,0.01]
[1744828820172,0.01509887,84042.0,84034.0,0.118997]
[1744828820579,0.01509887,84042.0,84034.0,0.128997]
[1744828820980,0.4797956,84035.0,84034.0,0.128997]
[1744828821489,0.4797956,84035.0,84034.0,0.01]
[1744828821675,0.4797956,84035.0,84034.0,0.128997]
[1744828821875,0.4797956,84035.0,84034.0,0.129077]
[1744828822077,0.6132956,84035.0,84034.0,0.129077]
[1744828822282,0.6172956,84035.0,84034.0,0.129077]
[1744828822472,0.2684,84035.0,84034.0,0.129077]
[1744828822675,0.004,84035.0,84034.0,0.129077]
[1744828822872,0.004,84035.0,84034.0,0.264477]
[1744828823082,0.007,84035.0,84034.0,0.264477]
[1744828825783,0.007,84035.0,84034.0,0.01008]
[1744828825980,0.3980956,84035.0,84034.0,0.01]
[1744828826278,0.3980956,84035.0,84034.0,0.129077]
[1744828826480,0.3980956,84035.0,84034.0,0.128997]
[1744828826683,0.3980956,84035.0,84034.0,0.01008]
[1744828826886,0.3980956,84035.0,84034.0,0.129077]
[1744828827081,0.3980956,84035.0,84034.0,0.01008]
[1744828827679,0.3980956,84035.0,84034.0,0.129077]
[1744828827886,0.3980956,84035.0,84034.0,0.01008]
[1744828828086,0.3980956,84035.0,84034.0,0.129077]
[1744828828684,0.3980956,84035.0,84034.0,0.01008]
[1744828829085,0.3980956,84035.0,84034.0,0.129077]
[1744828831195,0.2791,84035.0,84034.0,0.129077]
[1744828831491,0.005,84046.0,84041.0,0.1189871]
[1744828831694,0.005,84046.0,84042.0,0.1189857]
[1744828831894,0.005,84046.0,84042.0,0.2993857]
[1744828832588,0.005,84046.0,84045.0,0.1189814]
[1744828832891,0.1396,84057.0,84056.0,0.1189659]
[1744828833191,0.2585645,84057.0,84056.0,0.1289659]
[1744828833380,0.01679327,84062.0,84061.0,0.1189588]
[1744828833582,0.2737,84066.0,84065.0,0.1189531]
[1744828833790,0.1396,84074.0,84065.0,0.1189531]
[1744828833791,0.01653954,84067.0,84066.0,0.1189517]
[1744828833990,0.1189489,84069.0,84068.0,0.1189475]
[1744828834292,0.3891489,84069.0,84068.0,0.6401475]
[1744828835196,0.3931489,84069.0,84068.0,0.7840475]
[1744828835586,0.01280362,84069.0,84068.0,0.7840475]
[1744828836085,0.01580362,84069.0,84068.0,1.1448475]
[1744828836791,0.13475112,84069.0,84068.0,0.1604]
[1744828837092,0.41585112,84069.0,84068.0,0.2794289]
[1744828837389,0.41585112,84069.0,84068.0,0.6402289]
[1744828837588,0.41585112,84069.0,84068.0,0.2794289]
[1744828837785,0.41585112,84069.0,84068.0,0.6402289]
[1744828837988,0.01580362,84069.0,84068.0,0.6402289]
[1744828838290,0.007,84069.0,84068.0,0.6402289]
[1744828838690,8e-05,84076.0,84072.0,0.0594713]
[1744828838884,0.00010801,84080.0,84072.0,0.0594713]
[1744828838885,0.1189282,84083.0,84082.0,0.1189277]
[1744828839088,0.1189282,84083.0,84082.0,0.1489277]
[1744828839288,0.3898282,84083.0,84082.0,0.1489277]
[1744828839787,0.3898282,84083.0,84082.0,0.2895277]
[1744828840989,0.2709,84083.0,84082.0,0.6503277]
[1744828841190,0.00010801,84085.0,84084.0,0.1189263]
[1744828841496,0.1189197,84089.0,84088.0,0.1189206]
[1744828841684,0.1189197,84089.0,84088.0,0.1289206]
[1744828841884,0.4004197,84089.0,84088.0,0.1289206]
[1744828842096,0.2815,84089.0,84088.0,0.1289206]
[1744828842291,0.4004192,84089.0,84088.0,0.1289206]
[1744828842497,0.4091433,84089.0,84088.0,0.01]
[1744828842793,0.118939,84075.0,84073.0,0.1189413]
[1744828842985,0.118939,84075.0,84074.0,0.11911882]
[1744828843190,0.118939,84075.0,84074.0,0.11919882]
[1744828843486,0.0594658,84081.0,84074.0,0.11919882]
[1744828843487,0.2378508,84088.0,84087.0,0.1189206]
[1744828843686,0.2378508,84088.0,84085.0,0.1783858]
[1744828843687,0.1189234,84086.0,84085.0,0.1783858]
[1744828843887,0.1189234,84086.0,84083.0,0.118927]
[1744828843888,0.1189277,84084.0,84083.0,0.118927]
[1744828844093,0.11907351,84084.0,84083.0,0.118927]
[1744828844286,0.1189277,84084.0,84083.0,0.118927]
[1744828844494,0.1190077,84084.0,84083.0,0.118927]
[1744828844700,0.2543077,84084.0,84083.0,0.119007]
[1744828844882,0.27548,84084.0,84083.0,0.119007]
[1744828845088,0.3944063,84084.0,84083.0,0.119007]
[1744828845283,0.3964063,84084.0,84083.0,0.119007]
[1744828845483,0.00508,84084.0,84083.0,0.129007]
[1744828845690,0.1240063,84084.0,84083.0,0.129007]
[1744828846000,0.1239263,84084.0,84083.0,0.129007]
[1744828846195,0.1240063,84084.0,84083.0,0.129007]
[1744828846596,0.2642263,84084.0,84083.0,0.129007]
[1744828846795,0.2643063,84084.0,84083.0,0.129007]
[1744828847691,0.7632063,84084.0,84083.0,0.01008]
[1744828847892,1.02084,84084.0,84049.0,0.5392586]
[1744828848096,0.118963,84058.0,84057.0,0.0001458]
[1744828848301,0.479763,84058.0,84057.0,1e-08]
[1744828848592,0.1189715,84052.0,84051.0,0.0594862]
[1744828848794,0.1189715,84052.0,84048.0,0.4202883]
[1744828848994,0.0594889,84048.0,84043.0,0.00529482]
[1744828849293,0.1189829,84044.0,84043.0,0.12427912]
[1744828849691,0.1189829,84044.0,84043.0,0.12435912]
[1744828850085,0.1189829,84044.0,84043.0,0.00537482]
[1744828850285,0.1189829,84044.0,84043.0,0.12435912]
[1744828850914,0.2784,84047.0,84043.0,0.12435912]
[1744828850915,0.2784,84047.0,84046.0,0.11898]
[1744828851088,0.3973786,84047.0,84046.0,0.47978]
[1744828851283,0.3973786,84047.0,84046.0,0.11898]
[1744828851791,0.1784543,84055.0,84054.0,0.1189673]
[1744828851983,0.4565543,84055.0,84054.0,0.1189673]
[1744828853192,0.2781,84055.0,84051.0,0.0594862]
[1744828853388,0.397068,84055.0,84054.0,0.1189687]
[1744828853895,0.399068,84055.0,84054.0,0.1189687]
[1744828854093,0.002,84055.0,84054.0,0.4997687]
[1744828854292,0.004,84055.0,84054.0,0.4997687]
[1744828854997,0.1209673,84055.0,84054.0,0.3808]
[1744828855189,0.1209673,84055.0,84054.0,0.4997687]
[1744828855393,0.1189673,84055.0,84054.0,0.5037687]
[1744828855589,0.3980673,84055.0,84054.0,0.5038487]
[1744828856393,0.7588673,84055.0,84054.0,0.02408]
[1744828856697,0.7588673,84055.0,84054.0,0.00408]
[1744828856997,0.1189715,84052.0,84051.0,0.118972]
[1744828857296,0.2574701,84054.0,84053.0,0.1189701]
[1744828857497,0.5462701,84054.0,84053.0,0.1189701]
[1744828857888,0.5462701,84054.0,84053.0,0.4797701]
[1744828858093,0.5462701,84054.0,84053.0,0.4897701]
[1744828858695,0.5462701,84054.0,84053.0,0.4907701]
[1744828858890,0.4273,84054.0,84053.0,0.4907701]
[1744828859089,0.05965902,84060.0,84059.0,0.1189616]
[1744828859090,0.00017842,84060.0,84059.0,0.1189616]
[1744828859289,0.00017842,84060.0,84059.0,0.1289616]
[1744828860295,0.47993862,84060.0,84059.0,0.01]
[1744828860492,0.1189687,84054.0,84053.0,0.002]
[1744828860693,0.1784649,84052.0,84051.0,0.1189715]
[1744828860894,0.5392649,84052.0,84051.0,0.01]
[1744828861103,0.5392649,84052.0,84037.0,0.00019683]
[1744828861104,0.1189914,84038.0,84037.0,0.00019683]
[1744828861407,0.1190013,84031.0,84030.0,0.2532027]
[1744828861706,0.1190013,84031.0,84020.0,0.03]
[1744828861707,0.119014,84022.0,84020.0,0.18034899]
[1744828862001,0.119014,84022.0,84013.0,0.26939024]
[1744828862002,0.059509,84020.0,84013.0,0.23939024]
[1744828862192,0.3608,84014.0,84013.0,0.35841704]
[1744828862395,0.1190216,84017.0,84016.0,0.0595107]
[1744828862595,0.2725,84019.0,84018.0,0.1190197]
[1744828862796,0.2725,84019.0,84018.0,0.1290197]
[1744828862797,0.3915183,84019.0,84018.0,0.1290197]
[1744828863103,0.1190253,84014.0,84013.0,0.23939024]
[1744828863603,0.1190324,84009.0,83996.0,0.1290495]
[1744828863799,0.1190324,84009.0,83998.0,0.000108]
[1744828863995,0.1190381,84005.0,83995.0,0.35724397]
[1744828864197,0.1190381,84005.0,83997.0,0.000108]
[1744828864497,0.1190509,83996.0,83995.0,0.35724397]
[1744828864806,0.4798509,83996.0,83995.0,0.35724397]
[1744828865315,0.4798509,83996.0,83995.0,0.35732397]
[1744828865500,0.7468509,83996.0,83995.0,0.35724397]
[1744828865692,0.7468509,83996.0,83995.0,0.35732397]
[1744828865893,0.7468509,83996.0,83995.0,0.35724397]
[1744828866098,0.267,83996.0,83995.0,0.83717627]
[1744828866293,0.002,84005.0,83995.0,0.83717627]
[1744828866294,0.002,84005.0,84003.0,0.1190409]
[1744828866602,0.002,84005.0,84003.0,0.1290409]
[1744828866998,0.11921803,84004.0,84003.0,0.1290409]
[1744828867198,0.26717853,84004.0,84003.0,0.1290409]
[1744828867402,0.00017853,84004.0,84003.0,0.1290409]
[1744828867603,0.11921803,84004.0,84003.0,0.1291209]
[1744828867802,0.12021803,84004.0,84003.0,8e-05]
[1744828868006,0.1190565,83992.0,83986.0,0.01]
[1744828868207,0.4798565,83992.0,83991.0,0.00526537]
[1744828868405,0.4798565,83992.0,83991.0,0.00511957]
[1744828868610,0.4798565,83992.0,83991.0,0.12425747]
[1744828868795,0.7566565,83992.0,83991.0,0.00519957]
[1744828869499,0.1190693,83983.0,83982.0,0.1434]
[1744828869705,0.119065,83986.0,83983.0,0.059534]
[1744828870009,0.119065,83986.0,83985.0,0.1190664]
[1744828870410,0.119065,83986.0,83985.0,0.2624664]
[1744828870411,0.479865,83986.0,83985.0,0.2624664]
[1744828870605,0.1355933,83986.0,83985.0,0.2624664]
[1744828870806,0.119065,83986.0,83985.0,0.2624664]
[1744828871004,0.0595304,83989.0,83988.0,0.1785877]
[1744828871204,0.0595304,83989.0,83988.0,0.2381175]
[1744828872605,0.12685853,84004.0,83998.0,0.0595239]
[1744828872911,0.00017853,84004.0,84003.0,0.4798409]
[1744828873113,0.00017853,84004.0,84003.0,0.5098409]
[1744828873303,0.00017853,84004.0,84003.0,0.1490409]
[1744828873607,0.11921803,84004.0,84003.0,0.1490409]
[1744828873907,0.48101803,84004.0,84003.0,0.03008]
[1744828874407,0.48101803,84004.0,83999.0,0.412]
[1744828874408,0.1190452,84001.0,84000.0,0.1190451]
[1744828874810,0.1190452,84001.0,84000.0,0.2625451]
[1744828875014,0.00317853,84004.0,84003.0,0.1190409]
[1744828875213,0.00317853,84004.0,84003.0,0.1290409]
[1744828875611,0.00317853,84004.0,84003.0,0.4175409]
[1744828875809,0.12221803,84004.0,84003.0,0.4175409]
[1744828876200,0.12021803,84004.0,84003.0,0.4175409]
[1744828876406,0.12021803,84004.0,84003.0,0.155]
[1744828876608,0.11921803,84004.0,84003.0,0.15508]
[1744828876910,0.11921803,84004.0,84003.0,0.2741209]
[1744828877112,0.12121803,84004.0,84003.0,0.2741209]
[1744828877507,0.12121803,84004.0,84003.0,0.2740409]
[1744828877710,0.12221803,84004.0,84003.0,0.2741209]
[1744828878415,0.00317853,84004.0,84003.0,0.6349209]
[1744828878615,0.12221803,84004.0,84003.0,0.6349209]
[1744828878811,0.12221803,84004.0,84003.0,0.51588]
[1744828879014,0.12221803,84004.0,84003.0,0.2740409]
[1744828879218,0.12221803,84004.0,84003.0,0.2741209]
[1744828879421,0.00317853,84004.0,84003.0,0.2741209]
[1744828879623,0.00317853,84004.0,84003.0,0.5512209]
[1744828880818,0.12221803,84004.0,84003.0,0.5512209]
[1744828881722,0.12221803,84004.0,84003.0,0.28758]
[1744828882020,0.12221803,84004.0,84003.0,0.4065409]
[1744828882214,0.12221803,84004.0,84003.0,0.4066209]
[1744828882408,0.12221803,84004.0,84003.0,0.28758]
[1744828882610,0.48301803,84004.0,84003.0,8e-05]
[1744828883012,0.1190494,83997.0,83996.0,0.3242741]
[1744828883209,0.1190494,83997.0,83996.0,0.4707741]
[1744828883908,0.1190494,83997.0,83996.0,0.2922]
[1744828884118,0.1190494,83997.0,83996.0,0.1457]
[1744828884426,0.0595268,83994.0,83982.0,0.1465]
[1744828884608,0.1190636,83987.0,83986.0,0.1394]
[1744828884814,0.1786244,83975.0,83974.0,0.1190814]
[1744828885019,0.1786244,83975.0,83974.0,0.2090814]
[1744828885319,0.0684357,83975.0,83974.0,0.09]
[1744828885618,0.1190891,83969.0,83968.0,0.000108]
[1744828885821,0.1191133,83952.0,83951.0,0.01]
[1744828886013,0.1191246,83944.0,83943.0,0.0595628]
[1744828886214,0.1191274,83942.0,83941.0,0.1191282]
[1744828886410,0.1191274,83942.0,83941.0,0.08]
[1744828886818,0.1191303,83940.0,83939.0,0.00512274]
[1744828887015,0.1191303,83940.0,83939.0,0.03512274]
[1744828887217,0.4799303,83940.0,83939.0,0.03512274]
[1744828887417,0.4799303,83940.0,83939.0,0.03520274]
[1744828887721,0.1191388,83934.0,83933.0,0.1375]
[1744828888020,0.1191388,83934.0,83922.0,0.1524]
[1744828888021,0.1191487,83927.0,83926.0,0.1375]
[1744828888224,0.1787372,83922.0,83921.0,0.1787308]
[1744828888429,0.1787372,83922.0,83921.0,0.2095779]
[1744828888615,0.1787372,83922.0,83921.0,0.2096579]
[1744828888816,0.0595785,83922.0,83921.0,0.2096579]
[1744828889210,0.0595785,83922.0,83921.0,0.5704579]
[1744828889410,0.0595785,83922.0,83921.0,0.5703779]
[1744828889617,0.0595785,83922.0,83921.0,0.2095779]
[1744828889823,0.0595785,83922.0,83921.0,0.2126579]
[1744828890018,0.0595785,83922.0,83921.0,0.15308]
[1744828890219,0.0595785,83922.0,83921.0,0.00308]
[1744828890220,0.3351785,83922.0,83921.0,0.00308]
[1744828890413,0.34399945,83922.0,83921.0,0.003]
[1744828890618,0.34399945,83922.0,83921.0,0.00808]
[1744828891019,0.26517675,83922.0,83921.0,0.008]
[1744828891215,0.26517675,83922.0,83921.0,0.01808]
[1744828891420,0.26517675,83922.0,83921.0,0.00808]
[1744828891613,0.62597675,83922.0,83921.0,0.00808]
[1744828891811,0.26517675,83922.0,83921.0,0.00808]
[1744828892015,0.26517675,83922.0,83921.0,0.1272373]
[1744828892217,0.26517675,83922.0,83921.0,0.00808]
[1744828892415,0.62597675,83922.0,83921.0,0.00808]
[1744828892616,0.26517675,83922.0,83921.0,0.00808]
[1744828892816,0.26517675,83922.0,83921.0,0.1272373]
[1744828893015,0.26517675,83922.0,83921.0,0.008]
[1744828893215,0.26517675,83922.0,83921.0,0.00808]
[1744828893623,0.62597675,83922.0,83921.0,0.1272373]
[1744828894114,0.62597675,83922.0,83921.0,0.00808]
[1744828894313,0.26517675,83922.0,83921.0,0.00808]
[1744828894631,0.14602095,83922.0,83921.0,0.2747373]
[1744828894825,0.00882095,83922.0,83921.0,0.2847373]
[1744828895125,0.05975094,83930.0,83929.0,0.1191459]
[1744828895126,0.00017864,83930.0,83929.0,0.1191459]
[1744828895329,0.00017864,83930.0,83929.0,0.1391459]
[1744828895722,0.00017864,83930.0,83929.0,0.4254459]
[1744828896324,0.00017864,83930.0,83929.0,0.4264459]
[1744828896624,0.00017864,83930.0,83929.0,0.4294459]
[1744828896926,0.33705586,83960.0,83948.0,0.1191189]
[1744828897136,0.1857977,83951.0,83946.0,0.119121]
[1744828897428,0.0595615,83946.0,83945.0,0.1786812]
[1744828897728,0.0595615,83946.0,83945.0,0.3347812]
[1744828897920,0.1983615,83946.0,83945.0,0.4749812]
[1744828898424,0.2579218,83946.0,83945.0,0.3558609]
[1744828898731,0.41355478,83946.0,83945.0,0.3558609]
[1744828899029,0.41355478,83946.0,83945.0,0.7166609]
[1744828899230,0.41555478,83946.0,83945.0,0.7166609]
[1744828899530,0.41555478,83946.0,83945.0,0.7762232]
[1744828899732,0.41555478,83946.0,83945.0,0.6360232]
[1744828900031,0.41555478,83946.0,83945.0,0.4899232]
[1744828900331,0.41755478,83946.0,83945.0,0.3708]
[1744828900531,0.41755478,83946.0,83945.0,0.37088]
[1744828900731,0.41755478,83946.0,83945.0,0.01008]
[1744828901022,0.41755478,83946.0,83945.0,8e-05]
[1744828901921,0.41755478,83946.0,83945.0,0.1191232]
[1744828902229,0.27085478,83946.0,83945.0,0.1192032]
[1744828902931,0.27085478,83946.0,83945.0,0.1292032]
[1744828903132,0.27085478,83946.0,83945.0,0.2578032]
[1744828903833,0.27085478,83946.0,83945.0,0.13868]
[1744828904032,0.27085478,83946.0,83945.0,8e-05]
[1744828904223,0.27085478,83946.0,83945.0,0.1192032]
[1744828904418,0.27085478,83946.0,83945.0,0.2656032]
[1744828905230,0.27085478,83946.0,83945.0,0.27938]
[1744828905620,0.27085478,83946.0,83945.0,0.14648]
[1744828906120,0.27085478,83946.0,83945.0,0.2656032]
[1744828906426,0.27085478,83946.0,83945.0,0.14648]
[1744828906733,0.05958,83920.0,83917.0,0.0595812]
[1744828906922,0.1191544,83923.0,83922.0,0.1197047]
[1744828907120,0.1191615,83918.0,83917.0,8e-05]
[1744828907325,0.1191615,83918.0,83917.0,0.02008]
[1744828907625,0.42038,83920.0,83909.0,0.000108]
[1744828907626,0.1191672,83914.0,83909.0,0.000108]
[1744828907821,0.1191672,83914.0,83913.0,0.03512432]
[1744828908227,0.2656672,83914.0,83913.0,0.03520432]
[1744828908827,0.2656672,83914.0,83913.0,2e-08]
[1744828909027,0.1191857,83901.0,83900.0,0.09996]
[1744828909336,0.8407857,83901.0,83900.0,0.09996]
[1744828909537,0.1192027,83889.0,83888.0,0.1396]
[1744828909831,0.4800027,83889.0,83888.0,0.3096]
[1744828910032,0.4800027,83889.0,83888.0,0.4499]
[1744828910225,0.4800027,83889.0,83888.0,0.17]
[1744828910430,0.1192411,83862.0,83844.0,0.4176]
[1744828910627,0.01,83862.0,83861.0,0.29615873]
[1744828910830,0.01,83862.0,83861.0,0.65695873]
[1744828911022,0.1292411,83862.0,83861.0,0.65695873]
[1744828911423,0.1292411,83862.0,83861.0,0.1751275]
[1744828911629,0.01,83862.0,83861.0,0.29437]
[1744828911934,0.1292411,83862.0,83861.0,0.3105275]
[1744828912932,0.1302411,83862.0,83861.0,0.43977]
[1744828913324,0.011,83862.0,83861.0,0.43977]
[1744828913529,0.012,83862.0,83861.0,0.44077]
[1744828914126,0.1312411,83862.0,83861.0,0.44077]
[1744828914740,0.1312411,83862.0,83861.0,0.3215275]
[1744828915239,0.1312411,83862.0,83861.0,0.1861275]
[1744828915436,0.1192581,83850.0,83849.0,0.1291]
[1744828915740,0.0596214,83861.0,83849.0,0.1291]
[1744828915741,0.3608,83855.0,83854.0,0.1192525]
[1744828915950,0.3608,83855.0,83854.0,0.1392525]
[1744828916126,0.002,83862.0,83861.0,0.1192425]
[1744828916434,0.001,83862.0,83861.0,0.1392425]
[1744828916638,0.05979397,83870.0,83866.0,0.1192354]
[1744828916639,0.1192344,83867.0,83866.0,0.1192354]
[1744828916844,0.1192344,83867.0,83866.0,0.1292354]
[1744828917830,0.48880682,83867.0,83866.0,0.01]
[1744828918230,0.48880682,83867.0,83866.0,0.011]
[1744828918435,0.48880682,83867.0,83866.0,0.01108]
[1744828918641,0.48880682,83867.0,83866.0,0.00108]
[1744828919034,0.48880682,83867.0,83866.0,0.001]
[1744828919235,0.48980682,83867.0,83866.0,0.00108]
[1744828919737,0.48880682,83867.0,83866.0,8e-05]
[1744828919942,0.48880682,83867.0,83861.0,0.059621]
[1744828919943,0.178865,83862.0,83861.0,0.059621]
[1744828920131,0.37057242,83867.0,83859.0,0.133]
[1744828920335,0.37057242,83867.0,83866.0,0.1192354]
[1744828920542,0.37057242,83867.0,83866.0,0.1292354]
[1744828920841,0.37057242,83867.0,83866.0,0.1293154]
[1744828921342,0.54943112,83867.0,83866.0,0.1293154]
[1744828921539,0.059629,83851.0,83841.0,0.0596354]
[1744828921744,0.1192581,83850.0,83849.0,0.18480154]
[1744828921944,0.1192581,83850.0,83849.0,0.10554344]
[1744828921945,0.2590581,83850.0,83849.0,0.10554344]
[1744828922440,0.2590581,83850.0,83849.0,0.04]
[1744828922844,0.2590581,83850.0,83849.0,0.04008]
[1744828923044,0.2600581,83850.0,83849.0,0.04208]
[1744828923444,0.1192752,83838.0,83837.0,0.00060835]
[1744828923639,0.1192752,83838.0,83812.0,2.34812]
[1744828923640,0.0596389,83837.0,83820.0,0.01]
[1744828923839,0.0596389,83837.0,83820.0,0.17]
[1744828923840,0.01,83825.0,83820.0,0.17]
[1744828924042,0.01581081,83825.0,83820.0,0.17]
[1744828924348,0.1192994,83821.0,83820.0,0.17]
[1744828924644,0.4800994,83821.0,83820.0,0.17008]
[1744828924848,0.4800994,83821.0,83820.0,0.17]
[1744828925047,0.12830908,83821.0,83820.0,0.17008]
[1744828925249,0.00900968,83821.0,83820.0,0.17008]